fUST/lending_fUST_20250507
["ID","MTS","AMOUNT","RATE_DAILY","PERIOD"]
[360104318,1746550259150,-400.0,0.00019726,2]
[360104319,1746550259160,-400.0,0.00019726,2]
[360104320,1746550259170,-1428.88,0.00019726,2]
[360104321,1746550259179,-400.0,0.00019726,2]
[360104322,1746550259189,-984.36,0.00019726,2]
[360104323,1746550259200,-400.0,0.00019726,2]
[360104324,1746550259209,-430.15802287,0.00019726,2]
[360104325,1746550259219,-585.31,0.00019726,2]
[360104326,1746550259228,-400.0,0.00019726,2]
[360104327,1746550259237,-400.0,0.00019726,2]
[360104328,1746550259247,-400.0,0.00019726,2]
[360104329,1746550259256,-625.03,0.00019726,2]
[360104330,1746550259266,-400.0,0.00019726,2]
[360104331,1746550259276,-400.0,0.00019726,2]
[360104332,1746550259286,-400.0,0.00019726,2]
[360104333,1746550259297,-501.96523987,0.00019726,2]
[360104334,1746550259306,-400.0,0.00019726,2]
[360104335,1746550259316,-844.65,0.00019726,2]
[360104336,1746550259325,-585.18,0.00019726,2]
[360104337,1746550259335,-400.0,0.00019726,2]
[360104338,1746550259344,-2938.9,0.00019726,2]
[360104339,1746550259356,-400.0,0.00019726,2]
[360104340,1746550259476,-400.0,0.00019726,2]
[360104341,1746550259486,-608.74,0.00019726,2]
[360104342,1746550259495,-1026.77,0.00019726,2]
[360104343,1746550259505,-400.0,0.00019726,2]
[360104344,1746550259515,-642.63,0.00019726,2]
[360104345,1746550259524,-400.0,0.00019726,2]
[360104346,1746550259534,-400.0,0.00019726,2]
[360104347,1746550259544,-474.87,0.00019726,2]
[360104348,1746550259554,-503.80666547,0.00019726,2]
[360104349,1746550259565,-400.0,0.00019726,2]
[360104350,1746550259576,-437.22,0.00019726,2]
[360104351,1746550259585,-400.0,0.00019726,2]
[360104352,1746550259594,-400.0,0.00019726,2]
[360104353,1746550259605,-176.979047,0.00019726,2]
[360104354,1746550259615,-176.979047,0.00019726,2]
[360104355,1746550259626,-400.0,0.00019726,2]
[360104356,1746550259635,-440.42367638,0.00019726,2]
[360104357,1746550259645,-176.979047,0.00019726,2]
[360104358,1746550259654,-400.0,0.00019726,2]
[360104359,1746550259663,-400.0,0.00019726,2]
[360104360,1746550259672,-176.979047,0.00019726,2]
[360104361,1746550259681,-455.70127331,0.00019726,2]
[360104362,1746550259690,-400.0,0.00019726,2]
[360104363,1746550259700,-1877.288413,0.00019726,2]
[360104364,1746550259710,-400.0,0.00019726,2]
[360104365,1746550259720,-1877.288413,0.00019726,2]
[360104366,1746550259730,-400.0,0.00019726,2]
[360104367,1746550259740,-400.0,0.00019726,2]
[360104368,1746550259749,-400.0,0.00019726,2]
[360104369,1746550259758,-1877.288413,0.00019726,2]
[360104370,1746550259767,-1877.288413,0.00019726,2]
[360104371,1746550259776,-433.28797714,0.00019726,2]
[360104372,1746550259785,-400.0,0.00019726,2]
[360104373,1746550259795,-400.0,0.00019726,2]
[360104374,1746550259807,-400.0,0.00019726,2]
[360104375,1746550259817,-265.031267,0.00019726,2]
[360104376,1746550259826,-265.031267,0.00019726,2]
[360104377,1746550259836,-400.0,0.00019726,2]
[360104378,1746550259847,-400.0,0.00019726,2]
[360104379,1746550259856,-1732.06,0.00019726,2]
[360104380,1746550259865,-400.0,0.00019726,2]
[360104381,1746550259875,-265.031267,0.00019726,2]
[360104382,1746550259885,-265.031267,0.00019726,2]
[360104383,1746550259895,-898.37,0.00019726,2]
[360104384,1746550259905,-400.0,0.00019726,2]
[360104385,1746550259914,-400.0,0.00019726,2]
[360104386,1746550259923,-400.0,0.00019726,2]
[360104387,1746550259934,-400.0,0.00019726,2]
[360104388,1746550259943,-400.0,0.00019726,2]
[360104389,1746550259952,-400.0,0.00019726,2]
[360104390,1746550259962,-400.0,0.00019726,2]
[360104391,1746550259972,-400.0,0.00019726,2]
[360104392,1746550259982,-400.0,0.00019726,2]
[360104393,1746550259992,-400.0,0.00019726,2]
[360104394,1746550260001,-1095.13,0.00019726,2]
[360104395,1746550260011,-400.0,0.00019726,2]
[360104396,1746550260020,-428.54,0.00019726,2]
[360104397,1746550260029,-417.89,0.00019726,2]
[360104398,1746550260039,-400.0,0.00019726,2]
[360104399,1746550260049,-400.0,0.00019726,2]
[360104400,1746550260058,-400.0,0.00019726,2]
[360104401,1746550260068,-400.0,0.00019726,2]
[360104402,1746550260077,-400.0,0.00019726,2]
[360104403,1746550260087,-458.42,0.00019726,2]
[360104404,1746550260096,-400.0,0.00019726,2]
[360104405,1746550260105,-5262.57,0.00019726,2]
[360104406,1746550260115,-400.0,0.00019726,2]
[360104407,1746550260124,-400.0,0.00019726,2]
[360104408,1746550260133,-1308.2,0.00019726,2]
[360104409,1746550260142,-400.0,0.00019726,2]
[360104410,1746550260151,-537.13136702,0.00019726,2]
[360104411,1746550260160,-400.0,0.00019726,2]
[360104412,1746550260170,-400.0,0.00019726,2]
[360104413,1746550260179,-1379.79,0.00019726,2]
[360104414,1746550260188,-3412.15,0.00019726,2]
[360104415,1746550260198,-758.88,0.00019726,2]
[360104416,1746550260208,-400.0,0.00019726,2]
[360104417,1746550260218,-400.0,0.00019726,2]
[360104418,1746550260228,-400.0,0.00019726,2]
[360104419,1746550260237,-400.0,0.00019726,2]
[360104420,1746550260247,-867.45,0.00019726,2]
[360104421,1746550260256,-1172.28,0.00019726,2]
[360104422,1746550260265,-400.0,0.00019726,2]
[360104423,1746550260275,-400.0,0.00019726,2]
[360104424,1746550260284,-400.0,0.00019726,2]
[360104425,1746550260293,-400.0,0.00019726,2]
[360104426,1746550260303,-613.43,0.00019726,2]
[360104427,1746550260312,-400.0,0.00019726,2]
[360104428,1746550260321,-1734.58,0.00019726,2]
[360104429,1746550260331,-400.0,0.00019726,2]
[360104430,1746550260341,-469.63,0.00019726,2]
[360104431,1746550260351,-288.44821843,0.00019726,2]
[360104432,1746550261024,-400.0,0.00019178,2]
[360104433,1746550261034,-2569.27,0.00019178,2]
[360104434,1746550261043,-72.45191743,0.00019178,2]
[360104435,1746550261154,-348.36225702,0.00019178,2]
[360104436,1746550261163,-400.0,0.00019452,2]
[360104437,1746550261172,-884.75774298,0.00019452,2]
[360104438,1746550261184,-1317.52103089,0.00019452,2]
[360104523,1746551432916,-250.0,0.00016667,2]
[360104525,1746551432929,-300.0,0.00016761,2]
[360104527,1746551432941,-393.26355857,0.00016762,2]
[360104529,1746551432953,-170.66219384,0.00016762,2]
[360104532,1746551432965,-500.0,0.00016762,2]
[360104534,1746551432978,-500.0,0.00016762,2]
[360104536,1746551432989,-500.0,0.00016762,2]
[360104538,1746551433002,-500.0,0.00016762,2]
[360104540,1746551433014,-500.0,0.00016762,2]
[360104542,1746551433027,-239.19312474,0.00016762,2]
[360104544,1746551433039,-500.0,0.00016762,2]
[360104546,1746551433052,-510.60869776,0.00016762,2]
[360104549,1746551433064,-500.0,0.00016762,2]
[360104550,1746551433076,-337.05077564,0.00016762,2]
[360104552,1746551433085,-360.04797507,0.00016762,2]
[360104554,1746551433095,-500.0,0.00016762,2]
[360104556,1746551433105,-500.0,0.00016762,2]
[360104558,1746551433115,-500.0,0.00016762,2]
[360104560,1746551433124,-500.0,0.00016762,2]
[360104562,1746551433133,-500.0,0.00016762,2]
[360104563,1746551433142,-600.63914607,0.00016762,2]
[360104565,1746551433152,-500.0,0.00016762,2]
[360104567,1746551433162,-500.0,0.00016762,2]
[360104591,1746551433424,-500.0,0.00016762,2]
[360104594,1746551433456,-500.0,0.00016762,2]
[360104596,1746551433466,-500.0,0.00016762,2]
[360104598,1746551433477,-500.0,0.00016762,2]
[360104600,1746551433487,-500.0,0.00016762,2]
[360104602,1746551433497,-500.0,0.00016762,2]
[360104604,1746551433507,-500.0,0.00016762,2]
[360104606,1746551433516,-500.0,0.00016762,2]
[360104608,1746551433526,-500.0,0.00016762,2]
[360104610,1746551433535,-500.0,0.00016762,2]
[360104611,1746551433545,-500.0,0.00016762,2]
[360104613,1746551433555,-500.0,0.00016762,2]
[360104615,1746551433565,-500.0,0.00016762,2]
[360104617,1746551433574,-500.0,0.00016762,2]
[360104619,1746551433584,-500.0,0.00016762,2]
[360104621,1746551433593,-500.0,0.00016762,2]
[360104622,1746551433604,-500.0,0.00016762,2]
[360104624,1746551433614,-500.0,0.00016762,2]
[360104626,1746551433624,-500.0,0.00016762,2]
[360104628,1746551433633,-626.49335844,0.00016762,2]
[360104630,1746551433644,-500.0,0.00016762,2]
[360104632,1746551433653,-500.0,0.00016762,2]
[360104634,1746551433663,-500.0,0.00016762,2]
[360104636,1746551433671,-500.0,0.00016762,2]
[360104637,1746551433680,-500.0,0.00016762,2]
[360104639,1746551433690,-500.0,0.00016762,2]
[360104641,1746551433699,-500.0,0.00016762,2]
[360104643,1746551433709,-500.0,0.00016762,2]
[360104645,1746551433718,-500.0,0.00016762,2]
[360104647,1746551433727,-500.0,0.00016762,2]
[360104649,1746551433736,-500.0,0.00016762,2]
[360104650,1746551433746,-500.0,0.00016762,2]
[360104652,1746551433755,-500.0,0.00016762,2]
[360104654,1746551433765,-500.0,0.00016762,2]
[360104656,1746551433775,-500.0,0.00016762,2]
[360104658,1746551433784,-500.0,0.00016762,2]
[360104660,1746551433793,-400.0,0.00016762,2]
[360104662,1746551433803,-500.0,0.00016762,2]
[360104664,1746551433812,-500.0,0.00016762,2]
[360104665,1746551433822,-637.52,0.0001699,3]
[360104667,1746551433831,-550.12,0.0001699,3]
[360104669,1746551433840,-275.06,0.0001699,3]
[360104671,1746551433850,-825.18,0.0001699,3]
[360104673,1746551433861,-4127.08269932,0.00017,2]
[360105098,1746551438431,-186922.91730068,0.00017,2]
[360105100,1746551438441,-2197.33071306,0.000173,2]
[360105102,1746551438451,-151.0,0.000175,2]
[360105104,1746551438460,-151.0,0.000177,2]
[360105107,1746551438471,-2197.33071304,0.00017743,2]
[360105109,1746551438481,-500.0,0.00017773,2]
[360105111,1746551438491,-340.44994791,0.00017773,2]
[360105113,1746551438501,-505.25690834,0.00017773,2]
[360105115,1746551438512,-500.0,0.00017773,2]
[360105117,1746551438521,-552.38520618,0.00017773,2]
[360105119,1746551438530,-500.0,0.00017773,2]
[360105121,1746551438540,-500.55177401,0.00017773,2]
[360105123,1746551438550,-500.0,0.00017773,2]
[360105125,1746551438560,-500.0,0.00017773,2]
[360105127,1746551438570,-500.0,0.00017773,2]
[360105129,1746551438580,-500.0,0.00017773,2]
[360105131,1746551438589,-500.0,0.00017773,2]
[360105133,1746551438599,-370000.0,0.000178,2]
[360105135,1746551438610,-151.0,0.00018,2]
[360105137,1746551438620,-2197.33071304,0.00018187,2]
[360105139,1746551438630,-151.0,0.000182,2]
[360105141,1746551438640,-420.0,0.00018311,2]
[360105144,1746551438649,-1275.04,0.0001836,3]
[360105146,1746551438663,-1100.24,0.0001836,3]
[360105148,1746551438673,-550.12,0.0001836,3]
[360105150,1746551438683,-151.0,0.000185,2]
[360105152,1746551438693,-155.0,0.00018526,2]
[360105154,1746551438703,-2197.33071304,0.0001863,2]
[360105156,1746551438713,-500.0,0.0001863,2]
[360105158,1746551438723,-151.0,0.000187,2]
[360105160,1746551438733,-3008.65619073,0.00018749,2]
[360105162,1746551438742,-2981.01808577,0.000189,2]
[360105164,1746551438752,-151.0,0.000189,2]
[360105166,1746551438762,-78598.44909,0.00018999,2]
[360105169,1746551438774,-105437.0,0.00019,2]
[360105171,1746551438784,-613.55168602,0.00019041,2]
[360105173,1746551438794,-2197.33071304,0.00019073,2]
[360105175,1746551438804,-500.0,0.00019173,2]
[360105177,1746551438814,-500.0,0.00019173,2]
[360105179,1746551438824,-500.0,0.00019173,2]
[360105181,1746551438834,-500.0,0.00019173,2]
[360105183,1746551438845,-557.86665131,0.00019173,2]
[360105185,1746551438855,-500.0,0.00019173,2]
[360105187,1746551438866,-500.0,0.00019173,2]
[360105189,1746551438876,-500.0,0.00019173,2]
[360105191,1746551438886,-500.0,0.00019173,2]
[360105193,1746551438895,-500.0,0.00019173,2]
[360105195,1746551438905,-500.0,0.00019173,2]
[360105197,1746551438915,-500.0,0.00019173,2]
[360105199,1746551438925,-500.0,0.00019173,2]
[360105201,1746551438935,-304.20896254,0.00019173,2]
[360105203,1746551438944,-500.0,0.00019173,2]
[360105205,1746551438954,-500.0,0.00019173,2]
[360105207,1746551438964,-500.0,0.00019173,2]
[360105209,1746551438974,-500.22940159,0.00019173,2]
[360105211,1746551438984,-500.0,0.00019173,2]
[360105213,1746551438995,-500.0,0.00019173,2]
[360105215,1746551439005,-500.0,0.00019173,2]
[360105217,1746551439015,-500.30224403,0.00019173,2]
[360105220,1746551439026,-623.87666749,0.00019173,2]
[360105222,1746551439035,-500.0,0.00019173,2]
[360105224,1746551439045,-500.0,0.00019173,2]
[360105226,1746551439054,-500.0,0.00019173,2]
[360105228,1746551439064,-500.0,0.00019173,2]
[360105229,1746551439073,-500.0,0.00019173,2]
[360105231,1746551439083,-500.0,0.00019173,2]
[360105234,1746551439093,-500.0,0.00019173,2]
[360105236,1746551439105,-500.0,0.00019173,2]
[360105238,1746551439115,-500.0,0.00019173,2]
[360105240,1746551439125,-500.55364994,0.00019173,2]
[360105242,1746551439135,-500.0,0.00019173,2]
[360105244,1746551439144,-500.0,0.00019173,2]
[360105246,1746551439154,-500.0,0.00019173,2]
[360105248,1746551439166,-500.0,0.00019173,2]
[360105250,1746551439176,-500.0,0.00019173,2]
[360105252,1746551439186,-500.0,0.00019173,2]
[360105254,1746551439199,-500.0,0.00019173,2]
[360105256,1746551439209,-502.00234253,0.00019173,2]
[360105258,1746551439219,-500.0,0.00019173,2]
[360105260,1746551439229,-500.0,0.00019173,2]
[360105263,1746551439241,-236.67787335,0.00019173,2]
[360105265,1746551439251,-500.0,0.00019173,2]
[360105267,1746551439261,-500.34358694,0.00019173,2]
[360105269,1746551439273,-500.0,0.00019173,2]
[360105271,1746551439283,-521.35594741,0.00019173,2]
[360105273,1746551439292,-500.0,0.00019173,2]
[360105275,1746551439302,-505.99404103,0.00019173,2]
[360105277,1746551439311,-500.0,0.00019173,2]
[360105279,1746551439320,-500.0,0.00019173,2]
[360105281,1746551439330,-500.34287887,0.00019173,2]
[360105283,1746551439339,-500.0,0.00019173,2]
[360105285,1746551439349,-165.91508587,0.00019173,2]
[360105287,1746551439359,-519.60099838,0.00019173,2]
[360105289,1746551439370,-513.10292408,0.00019173,2]
[360105291,1746551439380,-500.0,0.00019173,2]
[360105293,1746551439390,-151.94334312,0.00019173,2]
[360105295,1746551439400,-445.44522005,0.00019173,2]
[360105296,1746551439409,-500.0,0.00019173,2]
[360105299,1746551439419,-500.0,0.00019173,2]
[360105301,1746551439428,-500.0,0.00019173,2]
[360105303,1746551439438,-500.0,0.00019173,2]
[360105305,1746551439447,-500.0,0.00019173,2]
[360105306,1746551439457,-151.0,0.00019178,2]
[360105309,1746551439466,-151.0,0.00019178,2]
[360105311,1746551439476,-266.595694,0.00019178,2]
[360105313,1746551439486,-184.611093,0.00019178,2]
[360105315,1746551439495,-184.611093,0.00019178,2]
[360105317,1746551439504,-151.0,0.00019178,2]
[360105319,1746551439514,-151.0,0.00019178,2]
[360105321,1746551439523,-529.64518887,0.00019178,2]
[360105323,1746551439533,-400.0,0.00019178,2]
[360105325,1746551439542,-400.0,0.00019178,2]
[360105327,1746551439553,-511.39966207,0.00019178,2]
[360105329,1746551439563,-400.0,0.00019178,2]
[360105331,1746551439572,-400.0,0.00019178,2]
[360105333,1746551439582,-307.91332687,0.00019178,2]
[360105335,1746551439591,-400.0,0.00019178,2]
[360105337,1746551439600,-400.0,0.00019178,2]
[360105339,1746551439610,-400.0,0.00019178,2]
[360105341,1746551439619,-400.0,0.00019178,2]
[360105343,1746551439629,-400.0,0.00019178,2]
[360105345,1746551439639,-400.0,0.00019178,2]
[360105347,1746551439648,-400.0,0.00019178,2]
[360105349,1746551439658,-400.0,0.00019178,2]
[360105351,1746551439667,-400.0,0.00019178,2]
[360105353,1746551439677,-400.0,0.00019178,2]
[360105355,1746551439687,-204.21910831,0.00019178,2]
[360105357,1746551439697,-400.0,0.00019178,2]
[360105359,1746551439707,-400.0,0.00019178,2]
[360105361,1746551439716,-400.0,0.00019178,2]
[360105363,1746551439726,-400.0,0.00019178,2]
[360105365,1746551439735,-469.45726411,0.00019178,2]
[360105367,1746551439745,-400.0,0.00019178,2]
[360105369,1746551439755,-309.69643883,0.00019178,2]
[360105371,1746551439765,-943.34,0.00019178,2]
[360105373,1746551439775,-204.85885003,0.00019178,2]
[360105375,1746551439785,-400.0,0.00019178,2]
[360105377,1746551439795,-357.10086959,0.00019178,2]
[360105379,1746551439806,-400.0,0.00019178,2]
[360105381,1746551439816,-400.0,0.00019178,2]
[360105383,1746551439825,-509.23200127,0.00019178,2]
[360105386,1746551439836,-400.0,0.00019178,2]
[360105388,1746551439846,-400.0,0.00019178,2]
[360105390,1746551439855,-400.0,0.00019178,2]
[360105392,1746551439866,-400.0,0.00019178,2]
[360105394,1746551439876,-400.0,0.00019178,2]
[360105396,1746551439885,-400.0,0.00019178,2]
[360105398,1746551439895,-401.28101685,0.00019178,2]
[360105400,1746551439904,-400.0,0.00019178,2]
[360105402,1746551439914,-400.0,0.00019178,2]
[360105405,1746551439935,-343.05919239,0.00019178,2]
[360105407,1746551439945,-400.0,0.00019178,2]
[360105409,1746551439955,-400.0,0.00019178,2]
[360105432,1746551440174,-400.0,0.00019178,2]
[360105434,1746551440184,-400.0,0.00019178,2]
[360105436,1746551440198,-400.0,0.00019178,2]
[360105437,1746551440208,-400.0,0.00019178,2]
[360105438,1746551440218,-400.0,0.00019178,2]
[360105439,1746551440228,-400.0,0.00019178,2]
[360105440,1746551440239,-317.15975652,0.00019178,2]
[360105442,1746551440248,-400.0,0.00019178,2]
[360105444,1746551440258,-400.0,0.00019178,2]
[360105446,1746551440268,-400.0,0.00019178,2]
[360105448,1746551440279,-407.5,0.00019178,2]
[360105450,1746551440289,-400.0,0.00019178,2]
[360105452,1746551440299,-400.0,0.00019178,2]
[360105454,1746551440308,-400.0,0.00019178,2]
[360105456,1746551440318,-400.0,0.00019178,2]
[360105459,1746551440328,-400.0,0.00019178,2]
[360105461,1746551440339,-400.0,0.00019178,2]
[360105463,1746551440349,-400.0,0.00019178,2]
[360105465,1746551440360,-400.0,0.00019178,2]
[360105467,1746551440369,-400.0,0.00019178,2]
[360105469,1746551440379,-400.0,0.00019178,2]
[360105470,1746551440388,-400.0,0.00019178,2]
[360105473,1746551440398,-419.0,0.00019178,2]
[360105475,1746551440408,-400.0,0.00019178,2]
[360105477,1746551440418,-400.0,0.00019178,2]
[360105479,1746551440427,-439.32,0.00019178,2]
[360105481,1746551440436,-400.0,0.00019178,2]
[360105483,1746551440445,-400.0,0.00019178,2]
[360105485,1746551440455,-400.0,0.00019178,2]
[360105487,1746551440464,-1322.3,0.00019178,2]
[360105489,1746551440474,-459.42975202,0.00019178,2]
[360105491,1746551440483,-400.0,0.00019178,2]
[360105493,1746551440493,-400.0,0.00019178,2]
[360105495,1746551440502,-613.43,0.00019178,2]
[360105497,1746551440512,-400.0,0.00019178,2]
[360105499,1746551440522,-400.0,0.00019178,2]
[360105501,1746551440532,-400.0,0.00019178,2]
[360105503,1746551440541,-424.31932119,0.00019178,2]
[360105505,1746551440550,-400.0,0.00019178,2]
[360105507,1746551440560,-400.0,0.00019178,2]
[360105509,1746551440570,-1000.0,0.00019178,2]
[360105511,1746551440579,-500.0,0.00019178,2]
[360105513,1746551440589,-402.82132138,0.00019178,2]
[360105515,1746551440599,-400.91459012,0.00019178,2]
[360105517,1746551440607,-469.63,0.00019178,2]
[360105519,1746551440617,-400.0,0.00019178,2]
[360105521,1746551440626,-400.0,0.00019178,2]
[360105523,1746551440636,-358.0,0.00019178,2]
[360105525,1746551440646,-400.0,0.00019178,2]
[360105527,1746551440655,-234.1504007,0.00019178,2]
[360105529,1746551440665,-500.84393885,0.00019178,2]
[360105531,1746551440674,-400.0,0.00019178,2]
[360105533,1746551440684,-404.34239598,0.00019178,2]
[360105535,1746551440693,-400.0,0.00019178,2]
[360105537,1746551440704,-400.0,0.00019178,2]
[360105539,1746551440714,-400.0,0.00019178,2]
[360105541,1746551440724,-400.0,0.00019178,2]
[360105543,1746551440733,-400.0,0.00019178,2]
[360105545,1746551440742,-557.65,0.00019178,2]
[360105548,1746551440752,-400.0,0.00019178,2]
[360105550,1746551440762,-402.76247651,0.00019178,2]
[360105552,1746551440772,-400.0,0.00019178,2]
[360105554,1746551440782,-400.0,0.00019178,2]
[360105556,1746551440791,-400.0,0.00019178,2]
[360105558,1746551440801,-1052.77,0.00019178,2]
[360105560,1746551440810,-400.0,0.00019178,2]
[360105562,1746551440819,-400.0,0.00019178,2]
[360105564,1746551440829,-503.74238831,0.00019178,2]
[360105566,1746551440839,-305.90250876,0.00019178,2]
[360105568,1746551440848,-265.84274164,0.00019178,2]
[360105570,1746551440857,-400.0,0.00019178,2]
[360105572,1746551440867,-400.0,0.00019178,2]
[360105574,1746551440876,-400.0,0.00019178,2]
[360105576,1746551440886,-582.88,0.00019178,2]
[360105578,1746551440896,-400.0,0.00019178,2]
[360105580,1746551440905,-500.0,0.00019178,2]
[360105582,1746551440915,-500.0,0.00019178,2]
[360105584,1746551440924,-500.0,0.00019178,2]
[360105586,1746551440933,-533.07018499,0.00019178,2]
[360105588,1746551440943,-400.0,0.00019178,2]
[360105590,1746551440953,-400.0,0.00019178,2]
[360105592,1746551440963,-400.0,0.00019178,2]
[360105594,1746551440972,-460.53,0.00019178,2]
[360105597,1746551440982,-400.0,0.00019178,2]
[360105599,1746551440992,-400.0,0.00019178,2]
[360105601,1746551441002,-400.0,0.00019178,2]
[360105603,1746551441012,-563.37,0.00019178,2]
[360105605,1746551441021,-400.0,0.00019178,2]
[360105607,1746551441030,-400.0,0.00019178,2]
[360105609,1746551441039,-451.51,0.00019178,2]
[360105611,1746551441049,-400.0,0.00019178,2]
[360105613,1746551441058,-400.0,0.00019178,2]
[360105615,1746551441067,-500.0,0.00019178,2]
[360105617,1746551441076,-400.0,0.00019178,2]
[360105619,1746551441085,-401.69087347,0.00019178,2]
[360105621,1746551441095,-405.80884421,0.00019178,2]
[360105623,1746551441105,-400.0,0.00019178,2]
[360105625,1746551441116,-400.0,0.00019178,2]
[360105627,1746551441126,-400.0,0.00019178,2]
[360105629,1746551441135,-400.0,0.00019178,2]
[360105631,1746551441145,-526.14095047,0.00019178,2]
[360105633,1746551441155,-400.0,0.00019178,2]
[360105635,1746551441166,-400.0,0.00019178,2]
[360105637,1746551441175,-400.0,0.00019178,2]
[360105639,1746551441186,-1994.82,0.00019178,2]
[360105641,1746551441200,-400.0,0.00019178,2]
[360105643,1746551441210,-400.0,0.00019178,2]
[360105645,1746551441219,-400.0,0.00019178,2]
[360105647,1746551441229,-402.56655068,0.00019178,2]
[360105649,1746551441239,-400.0,0.00019178,2]
[360105651,1746551441249,-675.2,0.00019178,2]
[360105653,1746551441259,-400.42065851,0.00019178,2]
[360105655,1746551441270,-1428.88,0.00019178,2]
[360105657,1746551441280,-400.0,0.00019178,2]
[360105659,1746551441290,-400.0,0.00019178,2]
[360105661,1746551441299,-400.0,0.00019178,2]
[360105663,1746551441309,-327.56483332,0.00019178,2]
[360105665,1746551441319,-267.4974309,0.00019178,2]
[360105667,1746551441329,-400.0,0.00019178,2]
[360105669,1746551441339,-400.0,0.00019178,2]
[360105671,1746551441349,-400.0,0.00019178,2]
[360105673,1746551441358,-400.0,0.00019178,2]
[360105675,1746551441372,-400.0,0.00019178,2]
[360105678,1746551441382,-400.0,0.00019178,2]
[360105680,1746551441391,-563.92,0.00019178,2]
[360105682,1746551441401,-402.39565763,0.00019178,2]
[360105684,1746551441410,-400.0,0.00019178,2]
[360105686,1746551441420,-400.0,0.00019178,2]
[360105688,1746551441430,-400.0,0.00019178,2]
[360105690,1746551441439,-400.0,0.00019178,2]
[360105692,1746551441449,-502.39141238,0.00019178,2]
[360105694,1746551441458,-400.0,0.00019178,2]
[360105696,1746551441467,-250.28177358,0.00019178,2]
[360105698,1746551441476,-400.0,0.00019178,2]
[360105700,1746551441485,-585.31,0.00019178,2]
[360105702,1746551441495,-400.0,0.00019178,2]
[360105704,1746551441504,-520.09874239,0.00019178,2]
[360105706,1746551441514,-400.0,0.00019178,2]
[360105708,1746551441523,-400.0,0.00019178,2]
[360105710,1746551441533,-400.0,0.00019178,2]
[360105712,1746551441543,-400.0,0.00019178,2]
[360105714,1746551441552,-400.0,0.00019178,2]
[360105716,1746551441562,-400.0,0.00019178,2]
[360105718,1746551441572,-400.0,0.00019178,2]
[360105720,1746551441581,-408.25050653,0.00019178,2]
[360105722,1746551441591,-400.0,0.00019178,2]
[360105724,1746551441600,-401.14486658,0.00019178,2]
[360105726,1746551441609,-403.2886634,0.00019178,2]
[360105728,1746551441619,-1756.62,0.00019178,2]
[360105730,1746551441628,-400.0,0.00019178,2]
[360105732,1746551441637,-400.0,0.00019178,2]
[360105734,1746551441647,-400.0,0.00019178,2]
[360105736,1746551441656,-400.0,0.00019178,2]
[360105738,1746551441666,-400.0,0.00019178,2]
[360105741,1746551441676,-400.0,0.00019178,2]
[360105743,1746551441685,-2938.9,0.00019178,2]
[360105745,1746551441695,-400.0,0.00019178,2]
[360105747,1746551441705,-514.78859153,0.00019178,2]
[360105749,1746551441714,-400.0,0.00019178,2]